[Event "BL 2018-19"]
[Site "Berlin"]
[Date "2019.03.01"]
[Round "9.11"]
[White "Edouard, Romain"]
[Black "Beerdsen, Thomas"]
[Result "1/2-1/2"]
[ECO "B44"]
[WhiteElo "2636"]
[BlackElo "2474"]
[Annotator "ChessBase"]
[PlyCount "128"]
[EventDate "2018.11.10"]
[EventType "team-tourn"]
[EventCountry "GER"]
[SourceTitle "playchess.com"]
[Source "ChessBase"]
[SourceQuality "1"]
[WhiteTeam "Werder Bremen"]
[BlackTeam "Muelheim"]
[TimeControl "40/6000+30:3000+30"]

1. e4 {[%emt 0:01:38]} c5 {[%emt 0:00:00]} 2. Nf3 {[%emt 0:00:06]} e6 {[%emt 0:00:00]} 3. d4 {[%emt 0:00:38]} cxd4 {[%emt 0:00:00]} 4. Nxd4 {[%emt 0:00:02]} Nc6 {[%emt 0:00:09]} 5. c4 {[%emt 0:00:14]} Nf6 {[%emt 0:01:54]} 6. Nc3 {[%emt 0:01:17]} Qc7 {[%emt 0:00:15]} 7. Ndb5 {[%emt 0:00:53]} Qb8 {[%emt 0:01:50]} 8. Be2 {[%emt 0:01:17]} a6 {[%emt 0:02:18]} 9. Nd4 {[%emt 0:01:06]} Bd6 {[%emt 0:05:04]} 10. Be3 {[%emt 0:03:14]} O-O {[%emt 0:06:08]} 11. a3 {[%emt 0:04:57]} Rd8 {[%emt 0:07:08]} 12. g3 {[%emt 0:23:53]} Bc7 {[%emt 0:09:08]} 13. O-O {[%emt 0:06:20]} h6 {[%emt 0:10:34]} 14. f4 {[%emt 0:13:30]} Bb6 {[%emt 0:07:55]} 15. b4 {[%emt 0:07:48]} d6 {[%emt 0:05:11]} 16. Kg2 {[%emt 0:05:08]} Qa7 {[%emt 0:04:47]} 17. Nxc6 {[%emt 0:03:09]} bxc6 {[%emt 0:00:04]} 18. Bxb6 {[%emt 0:00:35]} Qxb6 {[%emt 0:00:05]} 19. Qd3 {[%emt 0:01:47]} c5 {[%emt 0:08:49]} 20. Rab1 {[%emt 0:01:11]} Bd7 {[%emt 0:04:06]} 21. Rfd1 {[%emt 0:02:03]} Bc6 {[%emt 0:04:23]} 22. Bf3 {[%emt 0:00:08]} cxb4 {[%emt 0:02:10]} 23. axb4 {[%emt 0:00:08]} Rac8 {[%emt 0:00:56]} 24. Qd4 {[%emt 0:05:41]} Qc7 {[%emt 0:03:04]} 25. Rdc1 {[%emt 0:01:24]} Bb7 {[%emt 0:09:17]} 26. Nd1 {[%emt 0:00:19]} e5 {[%emt 0:02:35]} 27. Qd3 {[%emt 0:00:10]} exf4 {[%emt 0:01:42]} 28. gxf4 {[%emt 0:00:03]} d5 {[%emt 0:04:03]} 29. exd5 {[%emt 0:01:53]} Qxf4 {[%emt 0:00:08]} 30. Rc3 {[%emt 0:01:39]} Ng4 {[%emt 0:02:09]} 31. Bxg4 {[%emt 0:01:05]} Qxg4+ {[%emt 0:00:16]} 32. Kf1 {[%emt 0:00:09]} Rd6 {[%emt 0:02:58]} 33. Nf2 {[%emt 0:00:13]} Rf6 {[%emt 0:00:24]} 34. Rbc1 {[%emt 0:05:40]} Re8 {[%emt 0:01:10]} 35. R1c2 {[%emt 0:01:53]} Re5 {[%emt 0:02:00]} 36. Re2 {[%emt 0:01:03]} Ref5 {[%emt 0:00:04]} 37. Qe3 {[%emt 0:02:08]} Kh7 {[%emt 0:01:26]} 38. h3 {[%emt 0:03:56]} Qg6 {[%emt 0:02:23]} 39. Qd3 {[%emt 0:00:54]} Bc8 {[%emt 0:01:06]} 40. Ke1 {[%emt 0:00:58]} Qg1+ {[%emt 0:01:22]} 41. Kd2 {[%emt 0:50:02]} Qa1 {[%emt 0:08:10]} 42. Nd1 {[%emt 0:00:00]} Rg6 {[%emt 0:05:00]} 43. Ra3 {[%emt 0:00:00]} Qf6 {[%emt 0:00:14]} 44. Qc3 {[%emt 0:00:00]} Qg5+ {[%emt 0:03:12]} 45. Ne3 {[%emt 0:00:00]} Re5 {[%emt 0:03:20]} 46. Qd4 {[%emt 0:00:00]} Qe7 {[%emt 0:04:05]} 47. Qc5 {[%emt 0:00:00]} Qe8 {[%emt 0:01:36]} 48. Ra1 {[%emt 0:00:00]} Re4 {[%emt 0:03:51]} 49. Rae1 {[%emt 0:00:00]} Qe5 {[%emt 0:00:34]} 50. Nc2 {[%emt 0:00:00]} Qf4+ {[%emt 0:04:01]} 51. Kc3 {[%emt 0:00:00]} Qe5+ {[%emt 0:00:40]} 52. Kd2 {[%emt 0:00:00]} Bf5 {[%emt 0:03:17]} 53. Qf2 {[%emt 0:00:00]} Rg5 {[%emt 0:04:03]} 54. Qf3 {[%emt 0:00:00]} Rxe2+ {[%emt 0:02:18]} 55. Rxe2 {[%emt 0:00:00]} Qb2 {[%emt 0:00:44]} 56. Qc3 {[%emt 0:00:00]} Qb1 {[%emt 0:00:21]} 57. Nd4 {[%emt 0:01:09]} Bg6 {[%emt 0:02:18]} 58. Qb3 {[%emt 0:02:21]} Qa1 {[%emt 0:00:36]} 59. Qc3 {[%emt 0:06:00]} Qa2+ {[%emt 0:00:50]} 60. Nc2 {[%emt 0:00:02]} Rg1 {[%emt 0:01:28]} 61. d6 {[%emt 0:00:02]} Qb1 {[%emt 0:04:31]} 62. Ne1 {[%emt 0:00:01]} Qa2+ {[%emt 0:00:36]} 63. Nc2 {[%emt 0:00:12]} Qb1 {[%emt 0:00:40]} 64. Ne1 {[%emt 0:00:02]} Qa2+ {[%emt 0:00:06]} 1/2-1/2

[Event "BL 2018-19"]
[Site "Berlin"]
[Date "2019.03.01"]
[Round "9.11"]
[White "Predojevic, Borki"]
[Black "Berelowitsch, Alexander"]
[Result "1-0"]
[ECO "C09"]
[WhiteElo "2626"]
[BlackElo "2520"]
[Annotator "ChessBase"]
[PlyCount "81"]
[EventDate "2018.11.10"]
[EventType "team-tourn"]
[EventCountry "GER"]
[SourceTitle "playchess.com"]
[Source "ChessBase"]
[SourceQuality "1"]
[WhiteTeam "Solingen"]
[BlackTeam "Duesseldorf"]
[TimeControl "40/6000+30:3000+30"]

1. e4 {[%emt 0:00:00]} e6 {[%emt 0:00:01]} 2. d4 {[%emt 0:00:00]} d5 {[%emt 0:00:05]} 3. Nd2 {[%emt 0:00:00]} c5 {[%emt 0:00:34]} 4. Ngf3 {[%emt 0:00:55]} Nc6 {[%emt 0:06:49]} 5. exd5 {[%emt 0:01:14]} exd5 {[%emt 0:00:17]} 6. Bb5 {[%emt 0:00:08]} Qe7+ {[%emt 0:00:09]} 7. Be2 {[%emt 0:02:07]} Nf6 {[%emt 0:00:21]} 8. O-O {[%emt 0:02:01]} Qc7 {[%emt 0:00:19]} 9. dxc5 {[%emt 0:04:04]} Bxc5 {[%emt 0:02:14]} 10. Nb3 {[%emt 0:01:01]} Be7 {[%emt 0:03:43]} 11. Bg5 {[%emt 0:02:22]} O-O {[%emt 0:01:34]} 12. c3 {[%emt 0:00:09]} Be6 {[%emt 0:08:55]} 13. Re1 {[%emt 0:04:33]} Rae8 {[%emt 0:11:12]} 14. Bd3 {[%emt 0:17:37]} Bg4 {[%emt 0:14:24]} 15. h3 {[%emt 0:08:55]} Bh5 {[%emt 0:20:38]} 16. Bxf6 {[%emt 0:17:01]} Bxf6 {[%emt 0:01:04]} 17. Rxe8 {[%emt 0:02:10]} Rxe8 {[%emt 0:00:47]} 18. g4 {[%emt 0:00:41]} Bg6 {[%emt 0:04:10]} 19. Bxg6 {[%emt 0:01:45]} hxg6 {[%emt 0:00:37]} 20. Qxd5 {[%emt 0:00:05]} Ne5 {[%emt 0:04:41]} 21. Nxe5 {[%emt 0:15:26]} Rxe5 {[%emt 0:01:04]} 22. Qf3 {[%emt 0:00:06]} a5 {[%emt 0:03:01]} 23. Nd4 {[%emt 0:06:43]} a4 {[%emt 0:01:04]} 24. Rd1 {[%emt 0:02:35]} Kh7 {[%emt 0:06:57]} 25. Kg2 {[%emt 0:06:36]} Qe7 {[%emt 0:00:45]} 26. a3 {[%emt 0:01:24]} Kg8 {[%emt 0:07:52]} 27. Rd2 {[%emt 0:03:08]} Qd7 {[%emt 0:01:01]} 28. Qd1 {[%emt 0:06:24]} Re4 {[%emt 0:03:03]} 29. Nf3 {[%emt 0:01:26]} Qb5 {[%emt 0:01:12]} 30. Qf1 {[%emt 0:01:25]} Qc6 {[%emt 0:05:12]} 31. Qd3 {[%emt 0:00:09]} Re6 {[%emt 0:00:23]} 32. Qd7 {[%emt 0:02:30]} Qxd7 {[%emt 0:01:09]} 33. Rxd7 {[%emt 0:00:04]} b6 {[%emt 0:00:36]} 34. Ra7 {[%emt 0:01:13]} Be7 {[%emt 0:00:32]} 35. Kf1 {[%emt 0:00:20]} Bc5 {[%emt 0:00:30]} 36. Ra8+ {[%emt 0:00:38]} Bf8 {[%emt 0:00:22]} 37. Rxa4 {[%emt 0:00:08]} Rf6 {[%emt 0:00:22]} 38. Ng5 {[%emt 0:01:03]} Rc6 {[%emt 0:00:44]} 39. Ra8 {[%emt 0:00:26]} f6 {[%emt 0:00:32]} 40. Nf3 {[%emt 0:00:06]} Kf7 {[%emt 0:00:30]} 41. Nd4 {[%emt 0:50:15]} 1-0

[Event "BL 2018-19"]
[Site "Berlin"]
[Date "2019.03.01"]
[Round "9.13"]
[White "Smeets, Jan"]
[Black "Miedema, David"]
[Result "1-0"]
[ECO "B33"]
[WhiteElo "2602"]
[BlackElo "2381"]
[Annotator "RC"]
[PlyCount "69"]
[EventDate "2018.11.10"]
[EventType "team-tourn"]
[EventCountry "GER"]
[SourceTitle "playchess.com"]
[Source "ChessBase"]
[SourceQuality "1"]
[WhiteTeam "Solingen"]
[BlackTeam "Duesseldorf"]
[TimeControl "40/6000+30:3000+30"]

1. e4 {[%emt 0:00:00]} c5 {[%emt 0:00:00]} 2. Nf3 {[%emt 0:00:00]} Nc6 {[%emt 0:00:00]} 3. d4 {[%emt 0:00:45]} cxd4 {[%emt 0:00:00]} 4. Nxd4 {[%emt 0:00:03]} Nf6 {[%emt 0:00:00]} 5. Nc3 {[%emt 0:00:06]} e5 {[%emt 0:00:00]} 6. Ndb5 {[%emt 0:00:21]} d6 {[%emt 0:00:00]} 7. Bg5 {[%emt 0:02:34]} a6 {[%emt 0:00:32]} 8. Na3 {[%emt 0:00:04]} b5 {[%emt 0:00:10]} 9. Nd5 {[%emt 0:00:31]} Be7 {[%emt 0:00:07]} 10. Bxf6 {[%emt 0:00:08]} Bxf6 {[%emt 0:00:04]} 11. c4 {[%emt 0:02:18]} b4 {[%emt 0:00:07]} 12. Nc2 {[%emt 0:00:05]} O-O {[%emt 0:01:03]} 13. g3 {[%emt 0:13:04]} Bg5 {[%emt 0:07:37]} 14. h4 {[%emt 0:18:40]} Bh6 {[%emt 0:00:05]} 15. Bh3 {[%emt 0:03:01]} Be6 {[%emt 0:02:40]} 16. Kf1 {[%emt 0:00:46]} a5 {[%emt 0:03:07]} 17. Kg2 {[%emt 0:02:40]} Nb8 {[%emt 0:16:09]} 18. Nce3 {[%emt 0:23:11]} Bxe3 {[%emt 0:01:30]} 19. Nxe3 {[%emt 0:00:05]} Na6 {[%emt 0:10:25]} 20. Bf5 {[%emt 0:08:40]} g6 {[%emt 0:13:20]} 21. Bxe6 {[%emt 0:06:34]} fxe6 {[%emt 0:00:04]} 22. h5 {[%emt 0:00:18]} Nc5 {[%emt 0:03:55]} 23. hxg6 {[%emt 0:04:30]} hxg6 {[%emt 0:00:05]} 24. Rh4 {[%emt 0:08:55]} Kg7 {[%emt 0:03:55]} 25. Qe2 {[%emt 0:07:40]} Rh8 {[%emt 0:02:19]} 26. Rxh8 {[%emt 0:01:08]} Qxh8 {[%emt 0:00:15]} 27. Rh1 {[%emt 0:02:24]} Qg8 {[%emt 0:10:18]} 28. Qg4 {[%emt 0:02:15]} Rf8 {[%emt 0:00:37]} 29. Qh4 {[%emt 0:00:58]} Qf7 {[%emt 0:03:24]} 30. f4 {[%emt 0:01:48]} Nxe4 {[%emt 0:11:41]} 31. Ng4 {[%emt 0:00:27]} Qg8 {[%emt 0:00:04]} 32. fxe5 {[%emt 0:00:33]} dxe5 {[%emt 0:01:55]} 33. Qh6+ {[%emt 0:00:19]} Kf7 {[%emt 0:00:09]} 34. Qe3 {[%emt 0:00:11]} Nd6 {[%emt 0:01:01]} 35. Nh6+ {[%emt 0:00:04]} 1-0

[Event "BL 2018-19"]
[Site "Berlin"]
[Date "2019.03.01"]
[Round "9.13"]
[White "Babula, Vlastimil"]
[Black "Hausrath, Daniel"]
[Result "1/2-1/2"]
[ECO "E91"]
[WhiteElo "2538"]
[BlackElo "2493"]
[Annotator "ChessBase"]
[PlyCount "59"]
[EventDate "2018.11.10"]
[EventType "team-tourn"]
[EventCountry "GER"]
[SourceTitle "playchess.com"]
[Source "ChessBase"]
[SourceQuality "1"]
[WhiteTeam "Werder Bremen"]
[BlackTeam "Muelheim"]
[TimeControl "40/6000+30:3000+30"]

1. d4 {[%emt 0:00:00]} Nf6 {[%emt 0:00:00]} 2. c4 {[%emt 0:00:00]} g6 {[%emt 0:00:00]} 3. Nc3 {[%emt 0:00:00]} Bg7 {[%emt 0:00:03]} 4. e4 {[%emt 0:00:14]} d6 {[%emt 0:00:07]} 5. Nf3 {[%emt 0:00:24]} O-O {[%emt 0:00:08]} 6. Be2 {[%emt 0:00:12]} c5 {[%emt 0:00:26]} 7. O-O {[%emt 0:00:30]} Re8 {[%emt 0:00:17]} 8. h3 {[%emt 0:06:08]} cxd4 {[%emt 0:11:53]} 9. Nxd4 {[%emt 0:00:13]} Nc6 {[%emt 0:00:05]} 10. Be3 {[%emt 0:01:04]} Bd7 {[%emt 0:00:32]} 11. Re1 {[%emt 0:09:46]} Nxd4 {[%emt 0:07:24]} 12. Bxd4 {[%emt 0:00:12]} Bc6 {[%emt 0:00:37]} 13. Qc2 {[%emt 0:04:16]} a5 {[%emt 0:13:24]} 14. Rad1 {[%emt 0:01:45]} Qc7 {[%emt 0:02:54]} 15. b3 {[%emt 0:12:10]} Nd7 {[%emt 0:12:12]} 16. Bxg7 {[%emt 0:03:41]} Kxg7 {[%emt 0:00:04]} 17. Qb2 {[%emt 0:11:30]} Kg8 {[%emt 0:07:21]} 18. Bg4 {[%emt 0:01:02]} Nf6 {[%emt 0:14:32]} 19. Re3 {[%emt 0:07:30]} Qb6 {[%emt 0:13:24]} 20. Be2 {[%emt 0:11:12]} Qc5 {[%emt 0:01:59]} 21. a3 {[%emt 0:03:45]} Qe5 {[%emt 0:01:51]} 22. b4 {[%emt 0:02:17]} axb4 {[%emt 0:00:28]} 23. axb4 {[%emt 0:00:07]} Bd7 {[%emt 0:02:55]} 24. Qc1 {[%emt 0:07:54]} Rec8 {[%emt 0:02:49]} 25. Nd5 {[%emt 0:02:42]} Nxd5 {[%emt 0:01:13]} 26. exd5 {[%emt 0:00:22]} Qf6 {[%emt 0:01:08]} 27. Rf3 {[%emt 0:09:52]} Qe5 {[%emt 0:03:12]} 28. Bf1 {[%emt 0:02:09]} e6 {[%emt 0:02:07]} 29. Re3 {[%emt 0:03:07]} Qg7 {[%emt 0:02:26]} 30. dxe6 {[%emt 0:05:38]} 1/2-1/2

[Event "BL 2018-19"]
[Site "Berlin"]
[Date "2019.03.01"]
[Round "9.14"]
[White "Zelbel, Patrick"]
[Black "Werle, Jan"]
[Result "0-1"]
[ECO "C03"]
[WhiteElo "2439"]
[BlackElo "2528"]
[Annotator "ChessBase"]
[PlyCount "76"]
[EventDate "2018.11.10"]
[EventType "team-tourn"]
[EventCountry "GER"]
[SourceTitle "playchess.com"]
[Source "ChessBase"]
[SourceQuality "1"]
[WhiteTeam "Muelheim"]
[BlackTeam "Werder Bremen"]
[TimeControl "40/6000+30:3000+30"]

1. e4 {[%emt 0:00:00]} e6 {[%emt 0:00:00]} 2. d4 {[%emt 0:00:00]} d5 {[%emt 0:00:00]} 3. Nd2 {[%emt 0:00:11]} Be7 4. Ngf3 {[%emt 0:01:10]} Nf6 {[%emt 0:01:20]} 5. e5 {[%emt 0:00:26]} Nfd7 {[%emt 0:00:03]} 6. Bd3 {[%emt 0:00:23]} c5 {[%emt 0:00:58]} 7. c3 {[%emt 0:00:07]} b6 {[%emt 0:03:06]} 8. O-O {[%emt 0:02:33]} Ba6 {[%emt 0:01:05]} 9. Ne1 {[%emt 0:03:28]} Qc8 {[%emt 0:06:58]} 10. f4 {[%emt 0:07:02]} g6 {[%emt 0:04:36]} 11. g4 {[%emt 0:01:34]} Nc6 {[%emt 0:09:20]} 12. Ndf3 {[%emt 0:03:19]} Bxd3 {[%emt 0:13:36]} 13. Nxd3 {[%emt 0:12:36]} c4 {[%emt 0:06:43]} 14. Nde1 {[%emt 0:01:14]} h5 {[%emt 0:04:19]} 15. h3 {[%emt 0:03:34]} b5 {[%emt 0:01:17]} 16. a3 {[%emt 0:02:44]} Nb6 {[%emt 0:00:37]} 17. Ng2 {[%emt 0:04:04]} hxg4 {[%emt 0:01:57]} 18. hxg4 {[%emt 0:00:02]} Qd7 {[%emt 0:02:19]} 19. Ne3 {[%emt 0:12:43]} Na5 {[%emt 0:03:26]} 20. Bd2 {[%emt 0:09:37]} Nb3 {[%emt 0:00:19]} 21. Rb1 {[%emt 0:00:04]} Nxd2 {[%emt 0:00:55]} 22. Qxd2 {[%emt 0:01:26]} O-O-O {[%emt 0:01:22]} 23. Kg2 {[%emt 0:03:44]} Kb7 {[%emt 0:03:20]} 24. Qc2 {[%emt 0:07:07]} Ka8 {[%emt 0:06:25]} 25. Rh1 {[%emt 0:02:17]} Qc8 {[%emt 0:00:33]} 26. f5 {[%emt 0:08:27]} gxf5 {[%emt 0:04:14]} 27. gxf5 {[%emt 0:00:01]} f6 {[%emt 0:00:58]} 28. Kf2 {[%emt 0:07:40]} fxe5 {[%emt 0:06:21]} 29. dxe5 {[%emt 0:02:00]} exf5 {[%emt 0:01:17]} 30. Qxf5 {[%emt 0:05:46]} Qb7 {[%emt 0:00:07]} 31. Rxh8 {[%emt 0:00:11]} Rxh8 {[%emt 0:00:03]} 32. Qe6 {[%emt 0:01:26]} Rf8 {[%emt 0:07:54]} 33. Ke2 {[%emt 0:06:27]} Bc5 {[%emt 0:03:23]} 34. Nd4 {[%emt 0:00:08]} Qh7 {[%emt 0:03:27]} 35. Ndf5 {[%emt 0:02:01]} Qh2+ {[%emt 0:00:53]} 36. Kd1 {[%emt 0:01:48]} Rh8 {[%emt 0:03:33]} 37. Qc6+ {[%emt 0:00:35]} Kb8 {[%emt 0:00:03]} 38. Qxc5 {[%emt 0:00:29]} Qh1+ {[%emt 0:00:46]} 0-1

[Event "BL 2018-19"]
[Site "Berlin"]
[Date "2019.03.01"]
[Round "9.14"]
[White "Schuh, Dirk"]
[Black "Nikolic, Predrag"]
[Result "0-1"]
[ECO "C08"]
[WhiteElo "2395"]
[BlackElo "2576"]
[Annotator "ChessBase"]
[PlyCount "47"]
[EventDate "2018.11.10"]
[EventType "team-tourn"]
[EventCountry "GER"]
[SourceTitle "playchess.com"]
[Source "ChessBase"]
[SourceQuality "1"]
[WhiteTeam "Duesseldorf"]
[BlackTeam "Solingen"]
[TimeControl "40/6000+30:3000+30"]

1. e4 {[%emt 0:00:00]} e6 {[%emt 0:00:00]} 2. d4 {[%emt 0:00:00]} d5 {[%emt 0:00:00]} 3. Nd2 {[%emt 0:00:00]} c5 {[%emt 0:00:19]} 4. exd5 {[%emt 0:00:21]} exd5 {[%emt 0:00:06]} 5. Ngf3 {[%emt 0:00:17]} a6 {[%emt 0:00:30]} 6. Be2 {[%emt 0:00:31]} Nf6 {[%emt 0:00:29]} 7. O-O {[%emt 0:00:44]} c4 {[%emt 0:00:06]} 8. b3 {[%emt 0:05:19]} cxb3 {[%emt 0:03:11]} 9. axb3 {[%emt 0:01:18]} Be7 {[%emt 0:00:08]} 10. Re1 {[%emt 0:01:09]} O-O {[%emt 0:00:07]} 11. Ne5 {[%emt 0:06:01]} Qc7 {[%emt 0:00:12]} 12. Bd3 {[%emt 0:02:05]} Bb4 {[%emt 0:01:53]} 13. Re3 {[%emt 0:03:18]} Nc6 {[%emt 0:06:33]} 14. Ndf3 {[%emt 0:22:44]} Ne7 {[%emt 0:03:26]} 15. Nh4 {[%emt 0:03:59]} Ne4 {[%emt 0:07:04]} 16. Bxe4 {[%emt 0:09:14]} dxe4 {[%emt 0:00:13]} 17. Rxe4 {[%emt 0:00:44]} Nd5 {[%emt 0:03:51]} 18. Bd2 {[%emt 0:14:13]} Bc3 {[%emt 0:06:46]} 19. Rc1 {[%emt 0:01:56]} Be6 {[%emt 0:00:41]} 20. Nd3 {[%emt 0:04:38]} Nf6 {[%emt 0:27:35]} 21. Rf4 {[%emt 0:04:53]} Bg4 {[%emt 0:10:40]} 22. f3 {[%emt 0:10:21]} Be6 {[%emt 0:00:46]} 23. Bxc3 {[%emt 0:06:25]} Qxc3 {[%emt 0:00:08]} 24. Nc5 {[%emt 0:02:39]} 0-1

[Event "BL 2018-19"]
[Site "Berlin"]
[Date "2019.03.01"]
[Round "9.15"]
[White "Naumann, Alexander"]
[Black "Stark, Lars"]
[Result "1-0"]
[ECO "C42"]
[WhiteElo "2532"]
[BlackElo "2359"]
[Annotator "ChessBase"]
[PlyCount "78"]
[EventDate "2018.11.10"]
[EventType "team-tourn"]
[EventCountry "GER"]
[SourceTitle "playchess.com"]
[Source "ChessBase"]
[SourceQuality "1"]
[WhiteTeam "Solingen"]
[BlackTeam "Duesseldorf"]
[TimeControl "40/6000+30:3000+30"]

1. e4 {[%emt 0:00:00]} e5 {[%emt 0:00:00]} 2. Nf3 {[%emt 0:00:00]} Nf6 {[%emt 0:00:00]} 3. Nxe5 {[%emt 0:00:09]} d6 {[%emt 0:00:14]} 4. Nc4 {[%emt 0:00:20]} Nxe4 {[%emt 0:00:08]} 5. Qe2 {[%emt 0:00:12]} Qe7 {[%emt 0:00:09]} 6. Ne3 {[%emt 0:00:09]} Be6 {[%emt 0:02:57]} 7. c4 {[%emt 0:01:18]} Nc6 {[%emt 0:02:46]} 8. Nc3 {[%emt 0:02:39]} Nxc3 {[%emt 0:05:02]} 9. bxc3 {[%emt 0:02:08]} g6 {[%emt 0:08:47]} 10. d4 {[%emt 0:13:22]} Bg7 {[%emt 0:00:11]} 11. Rb1 {[%emt 0:04:40]} Na5 {[%emt 0:02:00]} 12. Nd5 {[%emt 0:09:03]} Bxd5 {[%emt 0:04:31]} 13. cxd5 {[%emt 0:00:23]} Qxe2+ {[%emt 0:17:05]} 14. Bxe2 {[%emt 0:00:40]} O-O {[%emt 0:01:51]} 15. Be3 {[%emt 0:03:09]} h5 {[%emt 0:08:34]} 16. h3 {[%emt 0:12:10]} f5 {[%emt 0:04:42]} 17. g4 {[%emt 0:04:15]} hxg4 {[%emt 0:04:07]} 18. hxg4 {[%emt 0:00:15]} f4 {[%emt 0:02:54]} 19. Bd2 {[%emt 0:00:32]} g5 {[%emt 0:15:56]} 20. Rh5 {[%emt 0:05:58]} Bf6 {[%emt 0:01:03]} 21. Bd3 {[%emt 0:00:21]} Kf7 {[%emt 0:02:38]} 22. Ke2 {[%emt 0:11:59]} Rh8 {[%emt 0:03:20]} 23. Kf3 {[%emt 0:03:29]} b6 {[%emt 0:02:53]} 24. Ke4 {[%emt 0:08:29]} Kg6 {[%emt 0:02:13]} 25. Rbh1 {[%emt 0:03:57]} Rae8+ {[%emt 0:01:36]} 26. Kf3+ {[%emt 0:00:04]} Kf7 {[%emt 0:00:05]} 27. Bb5 {[%emt 0:07:04]} Rd8 {[%emt 0:02:51]} 28. Re1 {[%emt 0:00:24]} Ra8 {[%emt 0:00:43]} 29. Re6 {[%emt 0:04:28]} Raf8 {[%emt 0:08:46]} 30. Ke4 {[%emt 0:01:43]} Bd8 {[%emt 0:01:56]} 31. c4 {[%emt 0:03:22]} c6 {[%emt 0:01:52]} 32. Ba6 {[%emt 0:01:28]} Be7 {[%emt 0:03:06]} 33. Bb4 {[%emt 0:02:37]} Rxh5 {[%emt 0:00:56]} 34. gxh5 {[%emt 0:00:03]} cxd5+ {[%emt 0:00:30]} 35. cxd5 {[%emt 0:00:51]} Rd8 {[%emt 0:00:28]} 36. Kf5 {[%emt 0:01:20]} g4 {[%emt 0:00:16]} 37. Kxg4 {[%emt 0:01:18]} Nc6 {[%emt 0:00:21]} 38. dxc6 {[%emt 0:00:35]} Kxe6 {[%emt 0:00:07]} 39. d5+ {[%emt 0:02:14]} Kxd5 1-0

[Event "BL 2018-19"]
[Site "Berlin"]
[Date "2019.03.01"]
[Round "9.15"]
[White "Markgraf, Alexander"]
[Black "Van Osch, Mees"]
[Result "1/2-1/2"]
[ECO "C11"]
[WhiteElo "2489"]
[BlackElo "2296"]
[Annotator "ChessBase"]
[PlyCount "58"]
[EventDate "2018.11.10"]
[EventType "team-tourn"]
[EventCountry "GER"]
[SourceTitle "playchess.com"]
[Source "ChessBase"]
[SourceQuality "1"]
[WhiteTeam "Werder Bremen"]
[BlackTeam "Muelheim"]
[TimeControl "40/6000+30:3000+30"]

1. e4 {[%emt 0:00:00]} e6 {[%emt 0:00:00]} 2. d4 {[%emt 0:00:00]} d5 {[%emt 0:00:00]} 3. Nc3 {[%emt 0:00:00]} Nf6 {[%emt 0:00:00]} 4. e5 {[%emt 0:00:00]} Nfd7 {[%emt 0:00:00]} 5. f4 {[%emt 0:00:07]} c5 {[%emt 0:00:00]} 6. Nf3 {[%emt 0:00:09]} Nc6 {[%emt 0:00:05]} 7. Be3 {[%emt 0:00:09]} cxd4 {[%emt 0:00:05]} 8. Nxd4 {[%emt 0:00:06]} Qb6 {[%emt 0:00:05]} 9. Be2 {[%emt 0:02:17]} Bc5 {[%emt 0:03:37]} 10. Na4 {[%emt 0:01:34]} Qa5+ {[%emt 0:00:14]} 11. c3 {[%emt 0:00:33]} Nxd4 {[%emt 0:04:52]} 12. Bxd4 {[%emt 0:04:33]} Bxd4 {[%emt 0:00:07]} 13. Qxd4 {[%emt 0:00:05]} b6 {[%emt 0:00:17]} 14. Bd1 {[%emt 0:04:08]} b5 {[%emt 0:08:05]} 15. Nc5 {[%emt 0:05:43]} Nxc5 {[%emt 0:03:22]} 16. Qxc5 {[%emt 0:00:07]} Bd7 {[%emt 0:00:08]} 17. Bb3 {[%emt 0:21:22]} Rc8 {[%emt 0:00:53]} 18. Qd4 {[%emt 0:00:38]} Qc7 {[%emt 0:03:15]} 19. O-O {[%emt 0:23:28]} O-O {[%emt 0:11:37]} 20. Rad1 {[%emt 0:06:41]} a5 {[%emt 0:03:32]} 21. a3 {[%emt 0:07:30]} Rb8 {[%emt 0:05:57]} 22. f5 {[%emt 0:15:15]} exf5 {[%emt 0:01:08]} 23. Bxd5 {[%emt 0:00:10]} Rbd8 {[%emt 0:02:23]} 24. Qf4 {[%emt 0:04:53]} Bc8 {[%emt 0:15:24]} 25. Kh1 {[%emt 0:01:33]} Qc5 {[%emt 0:13:41]} 26. Bb3 {[%emt 0:01:18]} Be6 {[%emt 0:00:57]} 27. Bc2 {[%emt 0:03:24]} g6 {[%emt 0:02:35]} 28. Rxd8 {[%emt 0:03:58]} Rxd8 {[%emt 0:00:06]} 29. Rd1 {[%emt 0:00:03]} Rd5 {[%emt 0:03:41]} 1/2-1/2

[Event "BL 2018-19"]
[Site "Berlin"]
[Date "2019.03.01"]
[Round "9.16"]
[White "Buckels, Valentin"]
[Black "Grigorian, Spartak"]
[Result "1-0"]
[ECO "E04"]
[WhiteElo "2427"]
[BlackElo "2391"]
[Annotator "NA"]
[PlyCount "93"]
[EventDate "2018.11.10"]
[EventType "team-tourn"]
[EventCountry "GER"]
[SourceTitle "playchess.com"]
[Source "ChessBase"]
[SourceQuality "1"]
[WhiteTeam "Muelheim"]
[BlackTeam "Werder Bremen"]
[TimeControl "40/6000+30:3000+30"]

1. d4 {[%emt 0:00:00]} Nf6 {[%emt 0:00:00]} 2. c4 {[%emt 0:00:00]} e6 {[%emt 0:00:00]} 3. g3 {[%emt 0:00:35]} d5 {[%emt 0:00:10]} 4. Nf3 {[%emt 0:00:06]} dxc4 {[%emt 0:00:12]} 5. Bg2 {[%emt 0:00:40]} a6 {[%emt 0:00:13]} 6. O-O {[%emt 0:00:32]} Nc6 {[%emt 0:00:05]} 7. e3 {[%emt 0:00:28]} Bd7 {[%emt 0:00:15]} 8. Qe2 {[%emt 0:01:41]} Bd6 {[%emt 0:00:30]} 9. Qxc4 {[%emt 0:01:13]} O-O {[%emt 0:00:28]} 10. Rd1 {[%emt 0:05:06]} Rb8 {[%emt 0:00:53]} 11. b3 {[%emt 0:11:04]} e5 {[%emt 0:00:13]} 12. dxe5 {[%emt 0:04:10]} Nxe5 {[%emt 0:01:33]} 13. Qc2 {[%emt 0:00:41]} Nxf3+ {[%emt 0:46:53]} 14. Bxf3 {[%emt 0:00:07]} Be5 {[%emt 0:00:05]} 15. Bb2 {[%emt 0:09:09]} Bxb2 {[%emt 0:06:27]} 16. Qxb2 {[%emt 0:00:05]} Qe7 {[%emt 0:01:07]} 17. Nd2 {[%emt 0:06:40]} Bg4 {[%emt 0:10:33]} 18. Rac1 {[%emt 0:04:15]} Rbd8 {[%emt 0:00:52]} 19. Bxg4 {[%emt 0:11:22]} Nxg4 {[%emt 0:00:08]} 20. Nc4 {[%emt 0:00:23]} h5 {[%emt 0:05:21]} 21. h3 {[%emt 0:05:54]} Nf6 {[%emt 0:00:07]} 22. Qe5 {[%emt 0:00:32]} Qxe5 {[%emt 0:03:39]} 23. Nxe5 {[%emt 0:00:02]} Rxd1+ {[%emt 0:00:42]} 24. Rxd1 {[%emt 0:00:03]} Re8 {[%emt 0:00:46]} 25. Nc4 {[%emt 0:10:42]} b6 {[%emt 0:01:40]} 26. Kg2 {[%emt 0:01:07]} Kf8 {[%emt 0:02:03]} 27. f4 {[%emt 0:01:31]} Re6 {[%emt 0:14:50]} 28. Kf3 {[%emt 0:01:19]} Rc6 {[%emt 0:00:49]} 29. Rd2 {[%emt 0:05:20]} Ke8 {[%emt 0:03:28]} 30. Ne5 {[%emt 0:01:17]} Rc1 {[%emt 0:00:48]} 31. g4 {[%emt 0:03:20]} Rf1+ {[%emt 0:04:41]} 32. Kg2 {[%emt 0:04:58]} Rc1 {[%emt 0:00:02]} 33. Rd4 {[%emt 0:03:58]} Rc2+ {[%emt 0:01:51]} 34. Kf3 {[%emt 0:00:32]} hxg4+ {[%emt 0:03:23]} 35. hxg4 {[%emt 0:00:10]} g6 {[%emt 0:01:03]} 36. g5 {[%emt 0:04:23]} Nh5 {[%emt 0:00:00]} 37. Rd7 {[%emt 0:06:53]} Rc5 {[%emt 0:00:38]} 38. Rd2 {[%emt 0:00:18]} a5 {[%emt 0:00:51]} 39. Kg4 {[%emt 0:01:43]} Rc3 {[%emt 0:00:48]} 40. f5 {[%emt 0:02:19]} Rc5 {[%emt 0:01:16]} 41. fxg6 {[%emt 0:54:04]} fxg6 {[%emt 0:15:31]} 42. Nxg6 {[%emt 0:00:00]} Ng3 {[%emt 0:00:21]} 43. Rd4 {[%emt 0:00:00]} Ne2 {[%emt 0:01:06]} 44. Re4+ {[%emt 0:00:00]} Kf7 {[%emt 0:00:42]} 45. Ne5+ {[%emt 0:00:00]} Kg8 {[%emt 0:01:41]} 46. Nd7 {[%emt 0:00:00]} Rc1 {[%emt 0:00:11]} 47. Re7 {[%emt 0:00:00]} 1-0